bitfinex/quotes_ETHUSD_20250623
["timestamp","ask_amount","ask_price","bid_price","bid_amount"]
[1750689081566,2.54581034,2282.6,2281.5,4.38297814]
[1750689081768,2.649,2282.5,2281.5,4.38297814]
[1750689081981,2.649,2282.5,2281.2,0.43838499]
[1750689082203,2.649,2282.9,2281.3,4.38346556]
[1750689082481,2.649,2282.9,2281.6,4.3828892]
[1750689082691,2.649,2282.9,2281.7,2.649]
[1750689082857,1.2649,2282.8,2281.9,4.3822142]
[1750689083062,10.0,2283.0,2281.9,4.38221817]
[1750689083288,11.0287628,2283.0,2281.5,2.649]
[1750689083491,11.0287628,2283.0,2281.9,4.38228529]
[1750689083785,11.0287628,2283.0,2281.5,2.649]
[1750689083989,2.648,2282.9,2281.6,4.3828892]
[1750689084153,2.648,2282.9,2281.9,4.38223184]
[1750689084485,2.648,2282.9,2281.0,10.0]
[1750689084486,12.80910343,2282.6,2281.0,3.777]
[1750689084692,2.648,2282.5,2281.2,4.38354606]
[1750689084887,12.80910343,2282.2,2281.0,4.383929]
[1750689085183,12.80910343,2282.2,2280.7,5.57749849]
[1750689085397,12.80910343,2282.2,2280.8,4.38442651]
[1750689085398,11.28091034,2282.1,2280.8,4.38442651]
[1750689085600,1.02902957,2282.0,2280.7,4.38449895]
[1750689085801,22.80910343,2281.8,2280.3,1.1191]
[1750689086005,1.02921361,2281.7,2280.3,4.38529526]
[1750689086212,12.80910343,2281.4,2279.9,1.1803]
[1750689086517,22.12351344,2281.3,2280.0,4.38594715]
[1750689086703,10.0,2281.1,2279.9,0.36614878]
[1750689086867,10.0,2281.1,2280.1,4.38577117]
[1750689087067,10.0,2281.1,2279.9,0.36614878]
[1750689087270,11.03026048,2281.1,2279.9,4.75230363]
[1750689087509,10.0,2281.1,2280.1,4.38558329]
[1750689087667,10.0,2281.1,2280.3,4.38538231]
[1750689087873,10.534,2281.4,2280.0,4.38596491]
[1750689088073,10.0,2281.3,2280.4,4.38506504]
[1750689088273,11.03200975,2281.3,2280.1,4.86087095]
[1750689088514,11.03200975,2281.3,2280.2,4.38556325]
[1750689088717,12.80910343,2280.3,2278.2,1.162]
[1750689089011,34.01292009,2280.2,2278.7,4.38836908]
[1750689089216,1.03200975,2280.1,2278.2,1.162]
[1750689089377,11.161,2280.0,2278.3,4.7556435]
[1750689089573,11.161,2280.0,2278.9,4.38794441]
[1750689089776,11.161,2280.0,2278.7,4.38836224]
[1750689089777,2.35027318,2279.9,2278.7,4.38836224]
[1750689089971,0.78445964,2279.8,2278.8,4.38825337]
[1750689090211,13.59356307,2279.8,2278.6,4.38858932]
[1750689090430,13.59356307,2279.8,2278.3,4.75560846]
[1750689090431,10.0,2279.7,2278.3,4.75560846]
[1750689090649,1.319107,2279.9,2278.4,1.1984]
[1750689090848,2.648,2279.6,2279.1,4.38759529]
[1750689091055,2.648,2279.6,2278.6,4.3886597]
[1750689091195,1.319107,2279.9,2278.7,4.3884671]
[1750689091396,10.534,2280.2,2279.5,4.38683144]
[1750689091397,2.648,2280.1,2279.5,4.38683144]
[1750689091591,2.648,2280.1,2279.3,4.38717321]
[1750689091830,2.648,2280.1,2279.3,4.38722202]
[1750689092034,2.648,2280.1,2279.3,4.38720362]
[1750689092193,10.0,2280.0,2278.4,1.1984]
[1750689092400,8.496,2279.9,2278.5,4.38885231]
[1750689092593,10.534,2280.2,2279.7,4.3864028]
[1750689092844,2.649,2279.9,2279.6,4.38660584]
[1750689093133,2.649,2279.9,2279.4,4.38703086]
[1750689093436,2.649,2279.9,2279.5,4.38690203]
[1750689093598,10.534,2280.2,2279.8,4.38633264]
[1750689093936,13.183,2280.2,2279.5,4.38692695]
[1750689094157,1.318719,2280.5,2280.3,4.38534202]
[1750689094324,10.537,2281.1,2279.5,4.38692695]
[1750689094325,11.152,2280.4,2279.5,4.38692695]
[1750689094527,2.669,2280.3,2279.5,4.38692695]
[1750689094852,2.669,2280.3,2279.5,4.38685883]
[1750689095258,2.669,2280.3,2279.1,1.0899]
[1750689095424,2.669,2280.3,2279.7,4.38641873]
[1750689095620,2.669,2280.3,2279.4,4.38698643]
[1750689095874,16.72657773,2280.3,2278.7,1.1336]
[1750689096084,16.72657773,2280.3,2279.1,4.38768279]
[1750689096371,10.0,2280.2,2278.7,1.1336]
[1750689096551,16.72657773,2280.3,2278.3,14.92620271]
[1750689096552,12.80910343,2279.9,2278.3,11.6735]
[1750689096856,14.35858101,2280.3,2278.3,11.6735]
[1750689096857,11.151,2279.8,2278.3,11.6735]
[1750689097071,1.1151,2279.7,2278.3,1.1365]
[1750689097224,12.80910343,2279.6,2278.5,4.38875302]
[1750689097421,12.80910343,2279.6,2278.2,0.005]
[1750689097863,1.1151,2279.7,2278.2,4.39440843]
[1750689097864,12.80910343,2279.2,2278.2,4.39440843]
[1750689098160,12.80910343,2279.2,2278.3,4.38920487]
[1750689098379,1.1151,2279.7,2278.9,4.38796555]
[1750689098530,2.669,2279.4,2278.6,4.38861798]
[1750689098857,2.669,2279.4,2278.5,4.38882369]
[1750689099192,12.80910343,2279.4,2278.2,0.005]
[1750689099470,10.0,2279.3,2278.4,4.38903493]
[1750689099640,23.42491034,2279.3,2278.3,4.38914777]
[1750689099836,12.80910343,2279.8,2278.2,0.005]
[1750689100037,8.469,2279.6,2278.2,0.005]
[1750689100259,8.469,2279.6,2278.5,4.38867555]
[1750689100769,8.469,2279.6,2279.2,4.38737268]
[1750689101060,8.469,2279.6,2279.3,4.3873015]
[1750689101245,2.67,2279.7,2278.8,1.1848]
[1750689101448,10.538,2280.0,2278.8,1.1848]
[1750689101633,2.67,2279.8,2279.2,4.38736923]
[1750689101964,3.9184743,2280.3,2278.8,8.24300611]
[1750689102260,12.80910343,2280.8,2279.0,4.38788942]
[1750689102463,3.988743,2280.5,2279.9,4.38603389]
[1750689102764,3.988743,2280.5,2279.8,4.38632822]
[1750689102765,2.67,2280.5,2279.8,4.38626597]
[1750689102927,2.67,2280.5,2279.6,4.38659609]
[1750689102928,3.10926058,2280.5,2279.6,4.38659609]
[1750689103132,2.67,2280.5,2279.9,4.38611786]
[1750689103328,0.98741446,2280.5,2279.9,4.38613005]
[1750689103560,10.0,2280.7,2279.9,4.38600783]
[1750689103723,10.0,2280.5,2279.7,4.38644809]
[1750689103924,10.0,2280.5,2279.8,4.38633706]
[1750689104264,2.67,2280.4,2279.9,4.38604014]
[1750689104449,2.67,2280.5,2280.0,4.38577313]
[1750689104650,12.67,2280.7,2280.1,4.38567364]
[1750689104841,12.67,2280.7,2279.5,1.1]
[1750689105041,12.67,2280.7,2279.2,2.67]
[1750689105042,10.0,2280.7,2279.2,3.77]
[1750689105390,11.105,2280.6,2279.7,4.38643853]
[1750689105568,12.80910343,2280.3,2278.8,1.167]
[1750689105727,3.39141034,2280.5,2278.5,4.38885231]
[1750689105728,10.0,2279.8,2278.5,4.38885231]
[1750689105927,10.0,2279.8,2279.0,4.38788399]
[1750689105928,2.67,2279.7,2279.0,4.38788399]
[1750689106352,12.80910343,2279.9,2279.1,4.38761544]
[1750689106551,2.67,2279.8,2279.2,4.38736279]
[1750689106957,2.67,2280.2,2279.6,4.38659552]
[1750689107144,2.67,2280.2,2279.5,4.38682007]
[1750689107348,12.80910343,2280.1,2279.2,4.38741352]
[1750689107568,12.80910343,2280.1,2279.2,4.38746631]
[1750689108070,10.0,2280.3,2278.7,4.3884671]
[1750689108372,12.28091034,2280.3,2279.4,4.3869411]
[1750689108536,2.67,2280.2,2279.3,4.38719302]
[1750689108938,2.67,2280.2,2279.4,4.38710391]
[1750689109137,2.67,2280.2,2279.4,4.38703257]
[1750689109474,2.67,2280.2,2279.4,4.38701807]
[1750689109655,6.05981034,2280.2,2278.6,4.3886597]
[1750689109855,6.05981034,2280.2,2279.3,4.38718217]
[1750689110173,6.05981034,2280.2,2279.5,4.38684341]
[1750689110474,2.67,2280.6,2279.1,2.67]
[1750689110676,10.0,2280.5,2279.1,4.38769689]
[1750689110882,10.0,2280.5,2279.4,4.38695023]
[1750689111266,12.80910343,2280.2,2278.7,4.3884671]
[1750689111473,8.402,2280.1,2279.1,4.38768719]
[1750689111671,4.79111034,2280.0,2279.1,4.82645591]
[1750689111976,4.79111034,2280.0,2279.2,4.38735827]
[1750689112176,2.67,2280.2,2279.1,0.43876872]
[1750689112476,2.67,2280.2,2278.8,4.38827453]
[1750689112676,2.67,2280.2,2279.3,4.38730562]
[1750689113579,2.67,2280.2,2278.9,4.38808196]
[1750689113742,2.67,2280.2,2279.3,4.38730079]
[1750689113945,2.67,2280.2,2279.4,4.38700718]
[1750689114349,11.42644352,2280.7,2279.6,4.38664887]
[1750689114547,11.42644352,2280.7,2278.6,13.90134516]
[1750689114548,10.98792991,2280.0,2278.3,1.1743]
[1750689114845,1.319265,2280.3,2278.3,5.56345838]
[1750689115176,10.0,2280.1,2279.2,4.38742509]
[1750689115398,10.0,2280.1,2278.3,1.1743]
[1750689115584,11.04045889,2280.1,2279.3,4.38721918]
[1750689115767,11.04045889,2280.1,2278.6,4.3886597]
[1750689115768,10.98792991,2280.3,2278.9,4.38805349]
[1750689115948,10.98792991,2280.3,2278.6,4.3886597]
[1750689115949,1.04102081,2280.2,2279.3,4.38716137]
[1750689116147,2.67,2280.1,2279.3,4.38716137]
[1750689116344,3.71153638,2280.1,2279.2,4.38740701]
[1750689116549,10.98792991,2280.0,2279.0,4.38772937]
[1750689116757,10.98792991,2279.7,2278.7,4.38835098]
[1750689116958,10.98792991,2279.7,2278.2,2.675]
[1750689117156,8.377,2279.6,2278.6,4.38858623]
[1750689117457,10.0,2279.9,2278.9,4.38795845]
[1750689117655,2.67,2279.8,2279.0,4.82660907]
[1750689117890,3.71120545,2279.8,2279.0,4.38788765]
[1750689118195,2.67,2279.8,2279.0,4.38788765]
[1750689118501,3.7116857,2279.8,2278.9,4.38798612]
[1750689119093,3.7116857,2279.8,2278.7,4.38845852]
[1750689119306,2.67,2279.8,2279.1,4.3875839]
[1750689119507,2.67,2279.8,2278.7,4.38845852]
[1750689119670,2.67,2279.8,2278.8,0.43884585]
[1750689119868,2.67,2279.8,2278.9,4.38797536]
[1750689120171,10.98792991,2279.6,2278.5,1.1154]
[1750689120372,10.98792991,2279.6,2278.3,0.005]
[1750689120875,10.98792991,2279.6,2278.7,4.38846444]
[1750689121101,10.98792991,2279.6,2278.6,4.38853635]
[1750689121304,12.3537229,2279.6,2278.6,4.38853635]
[1750689121706,12.3537229,2279.6,2278.5,4.38877096]
[1750689121869,10.98792991,2279.3,2278.3,0.005]
[1750689122069,12.3537229,2279.6,2278.6,4.38856046]
[1750689122376,10.0,2279.9,2279.1,4.38750548]
[1750689122575,10.0,2279.9,2278.7,4.38832811]
[1750689122781,10.98792991,2279.6,2278.3,2.583]
[1750689123005,10.98792991,2279.0,2278.3,0.005]
[1750689123303,2.578,2278.9,2278.3,0.005]
[1750689123503,4.77059299,2278.9,2278.3,0.005]
[1750689123706,5.20967072,2278.9,2278.3,0.005]
[1750689124611,2.578,2278.9,2278.4,4.38903296]
[1750689124806,2.578,2279.6,2278.9,4.38798502]
[1750689124968,2.578,2279.6,2278.3,0.005]
[1750689125174,18.696,2279.6,2278.8,4.38816125]
[1750689125383,18.696,2279.6,2278.7,4.38833959]
[1750689125603,20.5656,2279.6,2278.8,4.38823206]
[1750689125814,20.5656,2279.6,2278.7,4.82715827]
[1750689126015,0.55,2280.4,2278.7,4.82715827]
[1750689126016,1.318985,2280.8,2278.8,3.7685]
[1750689126198,2.578,2280.6,2280.0,4.38587861]
[1750689126394,2.578,2280.6,2280.1,4.38573776]
[1750689126569,1.04072552,2281.2,2279.8,4.38634967]
[1750689126768,1.04072552,2281.2,2280.8,4.38441826]
[1750689126973,0.3002531,2281.1,2280.6,4.38470376]
[1750689127383,0.3002531,2281.1,2280.6,4.38480542]
[1750689127583,0.3002531,2281.1,2280.4,4.38505397]
[1750689127785,0.3002531,2281.1,2280.3,4.38528026]
[1750689127985,2.8782531,2281.1,2280.0,4.38596491]
[1750689128186,2.8782531,2281.1,2280.3,4.38525578]
[1750689128508,2.8782531,2281.1,2280.3,4.38536349]
[1750689128714,2.8782531,2281.1,2280.2,4.38545028]
[1750689129011,2.8782531,2281.1,2279.9,4.38614558]
[1750689129193,2.8782531,2281.1,2280.4,4.38513873]
[1750689129401,4.12073567,2281.1,2280.4,4.38502465]
[1750689129599,4.12073567,2281.1,2279.8,4.38634967]
[1750689129777,4.12073567,2281.1,2280.2,4.3854652]
[1750689130695,10.0,2281.0,2279.3,1.1935]
[1750689130896,10.0,2281.0,2279.0,4.38775197]
[1750689130897,10.0,2280.8,2279.0,5.49155197]
[1750689131074,11.04086044,2280.8,2279.1,4.38769689]
[1750689131277,10.945,2280.7,2279.9,4.38614857]
[1750689131477,10.945,2280.7,2279.8,4.3862506]
[1750689131676,10.945,2280.7,2280.1,4.38564729]
[1750689131880,10.945,2280.7,2280.0,4.38587229]
[1750689132082,10.945,2280.7,2280.1,4.38575973]
[1750689132278,10.945,2280.7,2279.1,4.38769689]
[1750689132479,10.945,2280.7,2279.9,4.38604184]
[1750689133014,10.945,2280.7,2279.8,4.38633628]
[1750689133518,10.945,2280.7,2279.1,13.17832749]
[1750689133519,2.577,2280.8,2279.1,1.1603]
[1750689133722,2.577,2280.8,2279.9,4.3859811]
[1750689134027,1.41207357,2280.9,2280.3,4.38527983]
[1750689134181,1.04093522,2281.3,2280.7,4.38452944]
[1750689134380,10.545,2281.4,2280.3,4.82383727]
[1750689134381,2.577,2281.2,2280.3,0.43852798]
[1750689134620,2.577,2281.2,2279.8,2.577]
[1750689134621,2.577,2281.2,2280.5,4.38487493]
[1750689134989,2.577,2281.1,2279.9,4.38615728]
[1750689135319,10.99347478,2281.4,2279.8,2.577]
[1750689135487,2.577,2281.3,2280.8,4.38432805]
[1750689135683,2.577,2281.3,2279.8,15.37760289]
[1750689135885,2.577,2281.3,2281.0,4.38394125]
[1750689136095,2.577,2281.3,2280.6,4.38465582]
[1750689136096,10.545,2281.4,2280.8,4.3843158]
[1750689136303,10.545,2281.4,2280.2,4.38544009]
[1750689136501,10.545,2281.4,2280.0,4.38596491]
[1750689136728,10.545,2281.4,2279.9,4.38615728]
[1750689137030,2.6365941,2281.3,2280.5,4.38500129]
[1750689137333,10.545,2281.4,2281.1,4.38378452]
[1750689137542,2.577,2281.9,2280.2,4.38558021]
[1750689137686,10.539,2282.3,2280.2,10.0]
[1750689137890,2.577,2282.2,2281.6,4.38288864]
[1750689138112,10.0,2282.2,2281.6,4.38277035]
[1750689138327,2.577,2282.6,2281.6,4.38279998]
[1750689138502,10.0,2282.4,2281.3,4.38333537]
[1750689138705,2.577,2282.3,2281.2,4.38354106]
[1750689138915,2.577,2282.3,2281.0,4.3839848]
[1750689139118,2.577,2282.3,2280.9,4.38422563]
[1750689139119,10.0,2282.0,2280.9,4.38422563]
[1750689139444,2.28006029,2281.9,2280.7,4.38452108]
[1750689139725,10.0,2281.6,2280.4,4.38517201]
[1750689139890,10.0,2281.2,2280.0,0.55483573]
[1750689140086,10.0,2280.8,2279.1,1.1988]
[1750689140326,2.576,2280.7,2279.2,4.38750438]
[1750689140529,10.0,2280.6,2279.1,1.1988]
[1750689140700,21.15960289,2280.5,2279.2,4.38736735]
[1750689140903,0.43978423,2280.6,2279.5,4.38675402]
[1750689141143,12.576,2280.7,2279.8,4.38621849]
[1750689141454,12.576,2280.7,2279.3,4.38731189]
[1750689141597,12.80060289,2280.6,2279.1,1.1988]
[1750689141795,12.80060289,2280.6,2279.4,4.38700162]
[1750689142023,12.80060289,2280.6,2279.3,4.38720843]
[1750689142212,2.58199423,2280.5,2279.4,4.38701081]
[1750689142414,2.58199423,2280.5,2279.4,4.38701247]
[1750689142736,10.933,2280.4,2279.3,4.38725974]
[1750689142947,10.933,2280.4,2279.2,0.36626123]
[1750689143240,10.933,2280.4,2279.3,4.387213]
[1750689143405,1.35149942,2280.3,2279.3,4.387213]
[1750689143603,1.35149942,2280.3,2279.4,4.38710701]
[1750689143807,12.80060289,2280.2,2279.3,4.38726746]
[1750689144005,0.44333937,2280.7,2279.3,4.38731189]
[1750689144209,2.577,2281.8,2280.1,5.54922948]
[1750689144406,12.80060289,2281.5,2280.2,0.55492295]
[1750689144607,12.80060289,2281.5,2280.4,4.38518377]
[1750689144810,12.80060289,2281.5,2280.3,4.3852921]
[1750689145007,10.0,2281.4,2280.3,4.3852921]
[1750689145211,16.128,2281.3,2280.2,4.38547292]
[1750689145415,2.577,2281.2,2280.1,4.38565382]
[1750689145611,1.91477445,2281.1,2280.2,4.38556056]
[1750689145849,2.577,2281.0,2280.1,4.38567309]
[1750689146136,2.577,2281.0,2280.2,4.38556336]
[1750689146296,2.577,2281.0,2280.2,4.3855548]
[1750689146496,1.91477445,2281.1,2280.2,4.3855548]
[1750689146805,2.576,2281.0,2280.1,4.38566861]
[1750689147199,2.576,2281.0,2280.2,4.38556014]
[1750689147432,2.576,2281.0,2280.1,4.38566797]
[1750689147736,2.576,2281.1,2279.8,4.38634967]
[1750689148036,2.576,2281.1,2280.5,4.38499697]
[1750689148223,2.576,2281.2,2280.7,4.38450474]
[1750689148544,2.576,2281.2,2280.6,4.38470267]
[1750689148834,2.576,2281.2,2280.6,4.38468744]
[1750689148999,2.576,2281.2,2280.7,4.3845946]
[1750689149399,8.20274446,2281.3,2280.6,4.38471201]
[1750689150537,8.20274446,2281.3,2280.6,4.38472859]
[1750689150735,8.20274446,2281.3,2280.4,4.38507976]
[1750689150936,8.20274446,2281.3,2280.6,4.38465052]
[1750689151230,8.20274446,2281.3,2280.7,4.38452733]
[1750689151529,8.20274446,2281.3,2280.8,4.38423766]
[1750689151737,8.20274446,2281.3,2280.7,4.38451076]
[1750689151932,9.28061891,2281.3,2280.5,4.38490407]
[1750689152096,9.28061891,2281.3,2280.6,4.38480695]
[1750689152298,8.20274446,2281.3,2280.0,23.00423724]
[1750689152495,10.97583724,2282.2,2280.0,23.00423724]
[1750689152496,0.43179203,2282.2,2280.9,12.14023724]
[1750689152709,7.76,2282.5,2281.1,4.38384989]
[1750689153039,7.76,2282.5,2281.8,4.38247894]
[1750689153340,10.0,2282.7,2281.8,4.38248421]
[1750689153522,1.776,2282.6,2281.1,4.38384989]
[1750689153849,2.21442013,2282.6,2282.0,4.38209674]
[1750689154140,0.43842013,2282.6,2282.0,4.38197885]
[1750689154342,12.555,2282.7,2281.9,4.38229294]
[1750689155034,10.97583724,2283.1,2281.6,2.555]
[1750689155035,2.555,2283.1,2281.6,2.555]
[1750689155247,2.99166434,2283.1,2282.2,4.3816525]
[1750689155553,10.75166434,2283.1,2281.9,4.38231298]
[1750689155726,10.315,2283.1,2282.7,4.38066459]
[1750689156039,10.315,2283.1,2282.8,4.38043912]
[1750689156239,10.315,2283.1,2282.7,4.38076022]
[1750689156445,10.315,2283.1,2282.8,4.38053269]
[1750689156801,10.315,2283.1,2282.5,5.544661]
[1750689156802,2.555,2283.1,2282.5,5.544661]
[1750689157110,2.555,2283.6,2283.2,4.37981716]
[1750689157327,7.76,2283.9,2282.6,0.5544661]
[1750689157529,0.44667233,2283.9,2283.4,4.37942989]
[1750689157727,10.535,2284.0,2283.1,4.37991117]
[1750689157943,10.535,2284.0,2283.3,4.37946339]
[1750689158131,2.555,2284.1,2283.6,4.37886571]
[1750689158319,2.555,2284.1,2283.7,4.37875743]
[1750689158642,10.535,2284.8,2283.7,4.37875743]
[1750689158643,2.554,2284.6,2283.7,4.37871432]
[1750689158944,11.41784871,2284.8,2283.2,1.1197]
[1750689159101,10.0,2284.7,2283.4,4.37943417]
[1750689159427,11.41784871,2284.8,2283.5,4.37911748]
[1750689159624,10.0,2284.7,2283.3,4.37954148]
[1750689159831,10.0,2284.7,2283.5,4.37923144]
[1750689160045,10.0,2284.5,2283.6,4.37903464]
[1750689160209,10.97583724,2284.5,2283.2,4.37972913]
[1750689160403,4.69578487,2284.6,2283.3,4.37953722]
[1750689160608,10.0,2284.5,2283.6,4.37890974]
[1750689160842,10.0,2284.5,2283.5,4.37920978]
[1750689160843,2.554,2284.4,2283.5,4.37915603]
[1750689161019,2.554,2284.4,2283.3,4.37952144]
[1750689161020,4.85367849,2284.4,2283.3,4.37952144]
[1750689161341,4.85367849,2284.4,2283.4,4.37933706]
[1750689161711,4.85367849,2284.4,2283.6,4.37889354]
[1750689161905,2.554,2284.4,2283.5,4.37910232]
[1750689162107,2.554,2284.4,2283.4,4.3793482]
[1750689162357,10.97583724,2284.1,2282.3,1.1174]
[1750689162569,10.97583724,2283.5,2282.0,1.1174]
[1750689162862,10.847,2283.4,2282.0,1.1174]
[1750689163007,10.847,2283.4,2282.6,4.38094428]
[1750689163359,10.847,2283.4,2282.7,4.38074525]
[1750689163563,7.76,2284.0,2283.1,4.38000197]
[1750689163860,10.0,2284.0,2283.2,4.37975477]
[1750689164151,10.97583724,2283.9,2282.9,4.38026983]
[1750689164337,2.553,2283.8,2282.9,4.96818108]
[1750689164541,2.553,2283.8,2283.0,4.38017689]
[1750689164740,2.553,2283.8,2283.1,4.38000497]
[1750689165045,2.553,2283.8,2283.3,4.37948308]
[1750689165244,0.44582607,2284.0,2283.4,4.37942307]
[1750689165467,12.553,2284.3,2283.4,0.54995502]
[1750689165641,12.553,2284.3,2283.4,4.92934892]
[1750689166413,12.553,2284.3,2283.4,0.54995502]
[1750689167261,10.0,2284.3,2283.4,4.92938773]
[1750689167473,2.553,2284.3,2283.7,4.37873313]
[1750689167761,2.553,2284.6,2283.7,0.58791125]
[1750689167974,2.98637747,2284.6,2283.3,2.553]
[1750689168252,2.98637747,2284.6,2283.6,4.37887017]
[1750689168416,20.97583724,2284.5,2283.4,4.379289]
[1750689168610,20.97583724,2284.5,2283.2,4.3796416]
[1750689168611,10.97583724,2284.2,2283.2,4.3796416]
[1750689168948,2.39622147,2284.4,2283.4,4.37932894]
[1750689169545,2.39622147,2284.4,2282.8,11.1722]
[1750689169840,20.97583724,2284.5,2283.4,4.3792537]
[1750689170145,20.97583724,2284.5,2283.4,4.37931769]
[1750689170363,20.97583724,2284.5,2283.4,4.37932576]
[1750689170512,20.97583724,2284.5,2283.5,4.37923941]
[1750689170712,20.97583724,2284.5,2283.4,4.37932342]
[1750689170913,2.39622147,2284.4,2283.4,4.37932342]
[1750689171557,10.97583724,2283.9,2282.9,4.38022621]
[1750689171708,13.52783724,2283.9,2283.1,4.37991594]
[1750689171908,13.52783724,2283.9,2283.0,4.3801021]
[1750689171909,2.552,2283.9,2283.0,4.3801021]
[1750689172212,12.552,2284.2,2283.1,0.43801021]
[1750689172412,12.552,2284.2,2283.2,4.37974049]
[1750689172638,12.552,2284.2,2283.3,4.37961735]
[1750689173038,23.52783724,2284.2,2282.8,4.38048341]
[1750689173220,23.52783724,2284.2,2282.7,10.527]
[1750689173417,10.97583724,2283.9,2282.9,4.38024971]
[1750689173641,10.0,2283.8,2282.8,4.380441]
[1750689173849,10.0,2283.8,2282.9,4.38030541]
[1750689174160,3.17668372,2284.1,2282.5,3.6659]
[1750689174311,10.0,2284.1,2283.3,4.37948573]
[1750689174511,10.0,2284.1,2282.5,3.6659]
[1750689174512,10.0,2283.9,2283.2,4.37981749]
[1750689174814,10.0,2283.9,2283.1,4.37989809]
[1750689175054,10.0,2283.9,2283.1,4.37993565]
[1750689175236,10.0,2283.9,2283.0,4.38012916]
[1750689175446,10.0,2283.9,2283.2,4.37980024]
[1750689175660,10.0,2283.9,2283.1,4.8179113]
[1750689176135,10.0,2283.9,2283.1,9.19776028]
[1750689176333,10.0,2283.9,2283.2,4.37970637]
[1750689176649,10.0,2283.9,2283.3,4.3796131]
[1750689176958,10.0,2283.9,2283.1,0.43801292]
[1750689177169,10.0,2283.9,2282.4,4.38125163]
[1750689177170,10.0,2283.3,2282.4,4.38125163]
[1750689177322,7.76,2283.3,2282.8,4.38046875]
[1750689177522,7.76,2283.3,2282.2,1.1169]
[1750689177757,8.258,2283.6,2282.7,4.38064451]
[1750689177960,8.258,2283.6,2282.2,1.1169]
[1750689177961,10.97583724,2283.4,2282.2,1.1169]
[1750689178277,10.97583724,2283.4,2282.6,4.38096067]
[1750689178435,10.97583724,2283.4,2282.2,11.9269]
[1750689178436,10.0,2283.6,2282.2,11.9269]
[1750689178759,10.0,2283.6,2282.7,4.38073631]
[1750689179055,10.97583724,2283.4,2282.3,10.805]
[1750689179358,10.0,2283.6,2282.3,2.552]
[1750689180460,10.0,2283.6,2282.2,8.05062583]
[1750689181024,10.97583724,2283.4,2282.3,2.552]
[1750689181724,10.525,2283.8,2282.7,4.38068448]
[1750689181941,2.552,2284.2,2282.9,4.38028143]
[1750689182162,11.03504244,2284.1,2282.9,2.513]
[1750689182348,10.97583724,2283.3,2282.1,1.1107]
[1750689182551,10.97583724,2282.4,2281.4,1.317104]
[1750689183062,2.513,2282.5,2281.2,1.1107]
[1750689183239,2.513,2282.5,2281.4,4.3831198]
[1750689183441,2.513,2282.5,2281.5,6.8959695]
[1750689183754,2.513,2282.5,2281.5,4.38306942]
[1750689183960,13.038,2283.2,2282.0,4.38203659]
[1750689184280,10.0,2283.1,2282.2,5.50488506]
[1750689184447,2.513,2283.2,2282.2,5.50489617]
[1750689184649,2.513,2283.2,2282.2,1.1233]
[1750689185161,2.513,2283.2,2282.1,4.8200462]
[1750689185162,3.55097848,2283.2,2282.1,4.8200462]
[1750689185474,3.55164282,2283.2,2282.1,4.38182418]
[1750689185666,10.97583724,2283.4,2282.2,4.38161556]
[1750689185831,11.03824047,2283.3,2282.2,4.38161556]
[1750689186036,11.03824047,2283.3,2282.3,4.38153549]
[1750689186037,10.0,2283.3,2282.3,4.38153549]
[1750689186272,10.0,2283.3,2282.2,4.38162383]
[1750689186455,10.0,2283.3,2282.1,4.3818266]
[1750689186663,10.0,2283.3,2282.2,4.38171623]
[1750689186967,10.0,2283.3,2282.1,4.38192892]
[1750689187159,10.0,2283.3,2282.2,4.38173448]
[1750689187356,1.03827912,2283.2,2282.2,4.38173448]
[1750689187555,10.0,2283.3,2282.3,0.43817345]
[1750689187759,7.76,2283.2,2282.3,0.43817345]
[1750689188085,7.76,2283.2,2282.3,4.8197002]
[1750689188287,7.76,2283.2,2282.3,4.81961532]
[1750689188493,7.76,2283.2,2282.3,4.8196225]
[1750689188699,10.97583724,2283.1,2282.1,4.38182739]
[1750689188877,10.97583724,2283.1,2281.9,1.0915]
[1750689189190,2.87358372,2283.2,2282.3,4.38145971]
[1750689189392,3.91118424,2283.2,2282.3,4.38145971]
[1750689189564,2.87358372,2283.2,2282.2,4.38165801]
[1750689189765,2.87358372,2283.2,2282.3,4.38152765]
[1750689189994,18.19785855,2283.3,2281.9,5.47380297]
[1750689190158,20.71085855,2283.3,2282.4,4.38119516]
[1750689190361,2.513,2283.8,2282.7,4.38069017]
[1750689190597,2.513,2283.8,2282.2,1.1122]
[1750689190598,1.03785499,2283.7,2282.5,10.705]
[1750689190764,1.03744448,2283.7,2282.9,4.38039225]
[1750689190972,10.97583724,2283.4,2282.2,1.1122]
[1750689191288,19.17683724,2283.4,2282.5,4.38106403]
[1750689191481,10.0,2283.6,2282.2,1.1122]
[1750689191812,12.513,2283.6,2282.8,4.38043325]
[1750689192002,12.513,2283.6,2282.9,4.38024215]
[1750689192291,12.513,2283.6,2282.8,4.38049278]
[1750689192476,2.513,2283.6,2282.9,4.38029427]
[1750689192860,19.17930992,2283.7,2283.0,4.38019423]
[1750689193603,10.0,2283.9,2283.2,4.37981208]
[1750689193908,10.0,2283.9,2283.1,4.37989175]
[1750689193909,20.701,2283.9,2283.1,4.37989175]
[1750689194061,23.85108372,2283.9,2283.1,4.37988793]
[1750689194595,12.513,2283.9,2283.5,4.37915831]
[1750689194798,0.43921822,2284.4,2283.8,4.37857815]
[1750689195093,3.55184623,2284.5,2284.1,4.37806015]
[1750689195299,3.55184623,2284.5,2283.5,4.37924239]
[1750689195300,2.513,2284.5,2283.5,4.37924239]
[1750689195459,2.513,2284.5,2283.9,4.37832962]
[1750689195681,1.03884623,2284.7,2283.6,4.37902473]
[1750689195928,14.07784623,2284.8,2284.2,4.37773364]
[1750689196083,7.76,2284.9,2284.2,4.37779662]
[1750689196282,7.76,2284.9,2284.4,4.37742387]
[1750689196283,1.0385405,2284.9,2284.4,4.37742387]
[1750689196489,3.5515405,2285.1,2284.0,6.89120196]
[1750689196713,2.513,2285.1,2284.0,6.89120196]
[1750689196923,2.513,2285.1,2284.4,4.37732678]